[Event "SixDays One Year GM-B 2023"]
[Site "Budapest"]
[Date "2023.09.22"]
[Round "8.1"]
[White "Grover, Sahaj"]
[Black "Yeganegi, Barad"]
[Result "1-0"]
[ECO "D00"]
[WhiteElo "2488"]
[BlackElo "2261"]
[Annotator "ChessBase"]
[PlyCount "165"]
[EventDate "2023.09.18"]
[EventType "tourn"]
[EventCountry "HUN"]
[SourceTitle "playchess.com"]
[Source "ChessBase"]
[SourceQuality "1"]
[TimeControl "5400+30"]

1. d4 {[%emt 0:03:10]} d5 {[%emt 0:00:06]} 2. Bf4 {[%emt 0:00:12]} Nf6 {[%emt 0:00:13]} 3. e3 {[%emt 0:00:11]} c5 {[%emt 0:00:06]} 4. Nf3 {[%emt 0:00:14]} Nc6 {[%emt 0:00:07]} 5. Be2 {[%emt 0:00:13]} cxd4 {[%emt 0:04:31]} 6. exd4 {[%emt 0:00:08]} Bg4 {[%emt 0:01:25]} 7. c3 {[%emt 0:00:24]} e6 {[%emt 0:00:30]} 8. Qb3 {[%emt 0:00:36]} Qb6 {[%emt 0:18:54]} 9. Nbd2 {[%emt 0:01:53]} Qxb3 {[%emt 0:08:00]} 10. axb3 {[%emt 0:00:06]} Kd7 {[%emt 0:07:54]} 11. Bb5 {[%emt 0:09:50]} Bxf3 {[%emt 0:04:43]} 12. Nxf3 {[%emt 0:00:10]} Bd6 {[%emt 0:01:23]} 13. Bxd6 {[%emt 0:00:12]} Kxd6 {[%emt 0:00:05]} 14. Bxc6 {[%emt 0:00:04]} bxc6 {[%emt 0:07:12]} 15. Ne5 {[%emt 0:00:10]} Rhb8 {[%emt 0:01:03]} 16. Ra3 {[%emt 0:11:28]} Rb7 {[%emt 0:08:44]} 17. b4 {[%emt 0:00:19]} h6 {[%emt 0:05:11]} 18. Ra5 {[%emt 0:09:39]} Rc8 {[%emt 0:25:03]} 19. Kd2 {[%emt 0:07:15]} Nd7 {[%emt 0:00:41]} 20. Nd3 {[%emt 0:00:33]} e5 {[%emt 0:02:21]} 21. Rha1 {[%emt 0:05:47]} Rcc7 {[%emt 0:00:41]} 22. f3 {[%emt 0:00:40]} f5 {[%emt 0:00:45]} 23. Ra6 {[%emt 0:07:53]} e4 {[%emt 0:00:29]} 24. fxe4 {[%emt 0:00:39]} fxe4 {[%emt 0:00:24]} 25. Ne1 {[%emt 0:01:41]} Nb8 {[%emt 0:00:58]} 26. R6a5 {[%emt 0:00:51]} Rf7 {[%emt 0:00:52]} 27. Ke2 {[%emt 0:00:06]} a6 {[%emt 0:00:44]} 28. Nc2 {[%emt 0:00:05]} Rf6 {[%emt 0:00:19]} 29. Ne3 {[%emt 0:00:43]} h5 {[%emt 0:00:53]} 30. b3 {[%emt 0:00:43]} Rbf7 {[%emt 0:00:35]} 31. Rf1 {[%emt 0:00:07]} Rxf1 {[%emt 0:00:22]} 32. Nxf1 {[%emt 0:00:03]} Rb7 {[%emt 0:00:18]} 33. Ne3 {[%emt 0:00:58]} g6 {[%emt 0:00:06]} 34. Ra1 {[%emt 0:00:04]} Ke6 {[%emt 0:00:16]} 35. h4 {[%emt 0:01:55]} Kd6 {[%emt 0:00:19]} 36. Ra4 {[%emt 0:00:46]} Ke6 {[%emt 0:00:42]} 37. c4 {[%emt 0:00:19]} Kd6 {[%emt 0:00:06]} 38. Kd2 {[%emt 0:00:58]} Ke6 {[%emt 0:00:25]} 39. Kc3 {[%emt 0:00:46]} Rf7 {[%emt 0:01:00]} 40. Ra5 {[%emt 0:00:18]} Rd7 {[%emt 0:00:08]} 41. Rc5 {[%emt 0:00:22]} Rd6 {[%emt 0:00:34]} 42. g3 {[%emt 0:00:47]} Nd7 {[%emt 0:00:53]} 43. Ra5 {[%emt 0:00:05]} Nb8 {[%emt 0:00:03]} 44. Ra2 {[%emt 0:00:20]} Rd8 {[%emt 0:00:22]} 45. Rf2 {[%emt 0:00:24]} Nd7 {[%emt 0:00:39]} 46. Ng2 {[%emt 0:00:11]} Nf8 {[%emt 0:01:52]} 47. Nf4+ {[%emt 0:00:10]} Kf5 {[%emt 0:00:28]} 48. Ne2+ {[%emt 0:02:27]} Ke6 {[%emt 0:00:05]} 49. Rf1 {[%emt 0:00:05]} Ke7 {[%emt 0:00:43]} 50. Nf4 {[%emt 0:00:12]} Kd6 {[%emt 0:00:20]} 51. Ra1 {[%emt 0:00:10]} dxc4 {[%emt 0:00:55]} 52. bxc4 {[%emt 0:00:08]} Ra8 {[%emt 0:00:07]} 53. Ra5 {[%emt 0:00:18]} Nd7 {[%emt 0:00:29]} 54. Rg5 {[%emt 0:00:10]} Nf8 {[%emt 0:00:35]} 55. Re5 {[%emt 0:00:15]} Kd7 {[%emt 0:00:23]} 56. d5 {[%emt 0:01:24]} Kd6 {[%emt 0:00:56]} 57. Rxe4 {[%emt 0:01:38]} cxd5 {[%emt 0:00:11]} 58. Nxd5 {[%emt 0:00:05]} Rc8 {[%emt 0:00:33]} 59. Re1 {[%emt 0:00:56]} Ne6 {[%emt 0:00:16]} 60. Ra1 {[%emt 0:00:11]} Rc6 {[%emt 0:00:22]} 61. Rf1 {[%emt 0:00:48]} Rc8 {[%emt 0:00:26]} 62. Rf6 {[%emt 0:00:09]} Ke5 {[%emt 0:00:08]} 63. Rf1 {[%emt 0:02:23]} Re8 {[%emt 0:00:37]} 64. Ra1 {[%emt 0:00:14]} Rf8 {[%emt 0:00:07]} 65. Re1+ {[%emt 0:01:52]} Kd6 {[%emt 0:00:07]} 66. Re3 {[%emt 0:00:04]} Rf1 {[%emt 0:00:59]} 67. Nb6 {[%emt 0:00:24]} Nc7 {[%emt 0:01:20]} 68. Nc8+ {[%emt 0:00:39]} Kd7 {[%emt 0:00:05]} 69. Ne7 {[%emt 0:00:51]} Rc1+ {[%emt 0:00:24]} 70. Kb3 {[%emt 0:00:26]} Ne6 {[%emt 0:00:26]} 71. Nxg6 {[%emt 0:00:06]} Nd4+ {[%emt 0:00:02]} 72. Kb2 {[%emt 0:00:07]} Rc2+ {[%emt 0:00:19]} 73. Kb1 {[%emt 0:00:06]} Kd6 {[%emt 0:00:07]} 74. Ne5 {[%emt 0:02:04]} Rf2 {[%emt 0:00:17]} 75. Nd3 {[%emt 0:00:13]} Rf1+ {[%emt 0:00:07]} 76. Kb2 {[%emt 0:00:06]} Nf5 {[%emt 0:00:06]} 77. Re5 {[%emt 0:00:34]} Rf3 {[%emt 0:00:25]} 78. Ra5 {[%emt 0:01:15]} Nxg3 {[%emt 0:01:04]} 79. Rxa6+ {[%emt 0:00:07]} Kc7 {[%emt 0:00:04]} 80. Nc5 {[%emt 0:02:32]} Rf2+ {[%emt 0:00:26]} 81. Kb3 {[%emt 0:00:11]} Nf5 {[%emt 0:00:35]} 82. b5 {[%emt 0:00:07]} Nd6 {[%emt 0:00:34]} 83. Rc6+ {[%emt 0:00:07]} 1-0

[Event "SixDays One Year GM-B 2023"]
[Site "Budapest"]
[Date "2023.09.22"]
[Round "8.2"]
[White "Xiao, Tong"]
[Black "Varga, Zoltan"]
[Result "1-0"]
[ECO "B04"]
[WhiteElo "2452"]
[BlackElo "2363"]
[Annotator "ChessBase"]
[PlyCount "61"]
[EventDate "2023.09.18"]
[EventType "tourn"]
[EventCountry "HUN"]
[SourceTitle "playchess.com"]
[Source "ChessBase"]
[SourceQuality "1"]
[TimeControl "5400+30"]

1. e4 {[%emt 0:00:02]} Nf6 {[%emt 0:15:44]} 2. e5 {[%emt 0:00:04]} Nd5 {[%emt 0:00:04]} 3. d4 {[%emt 0:00:06]} d6 {[%emt 0:00:04]} 4. Nf3 {[%emt 0:00:08]} c6 {[%emt 0:03:56]} 5. c4 {[%emt 0:02:31]} Nc7 {[%emt 0:04:17]} 6. h3 {[%emt 0:03:59]} dxe5 {[%emt 0:01:09]} 7. Nxe5 {[%emt 0:00:21]} g6 {[%emt 0:00:03]} 8. Nc3 {[%emt 0:03:28]} Bg7 {[%emt 0:01:13]} 9. Nf3 {[%emt 0:10:09]} O-O {[%emt 0:02:48]} 10. Bf4 {[%emt 0:00:34]} Ne6 {[%emt 0:06:05]} 11. Be3 {[%emt 0:03:57]} f5 {[%emt 0:00:45]} 12. g3 {[%emt 0:00:29]} f4 {[%emt 0:11:56]} 13. gxf4 {[%emt 0:00:09]} Nxf4 {[%emt 0:00:02]} 14. Qd2 {[%emt 0:03:11]} Nd5 {[%emt 0:01:45]} 15. cxd5 {[%emt 0:02:51]} Rxf3 {[%emt 0:04:31]} 16. Bc4 {[%emt 0:10:25]} Kh8 {[%emt 0:00:10]} 17. h4 {[%emt 0:00:14]} cxd5 {[%emt 0:01:35]} 18. Bxd5 {[%emt 0:03:03]} Rf5 {[%emt 0:00:05]} 19. Be4 {[%emt 0:00:12]} Nc6 {[%emt 0:00:05]} 20. O-O-O {[%emt 0:05:19]} Rh5 {[%emt 0:02:32]} 21. Ne2 {[%emt 0:05:08]} Bf5 {[%emt 0:02:46]} 22. f3 {[%emt 0:00:19]} Na5 {[%emt 0:08:00]} 23. Bg5 {[%emt 0:05:56]} Nc4 {[%emt 0:06:26]} 24. Qd3 {[%emt 0:00:28]} Rc8 {[%emt 0:14:07]} 25. Kb1 {[%emt 0:00:09]} Qd6 {[%emt 0:00:03]} 26. Bxf5 {[%emt 0:05:43]} gxf5 {[%emt 0:00:03]} 27. Rc1 {[%emt 0:00:27]} b5 {[%emt 0:00:56]} 28. f4 {[%emt 0:06:53]} Rh6 {[%emt 0:03:23]} 29. Bxh6 {[%emt 0:00:27]} Bxh6 {[%emt 0:00:15]} 30. Qxf5 {[%emt 0:01:39]} e6 {[%emt 0:00:20]} 31. Qd3 {[%emt 0:01:03]} 1-0

[Event "SixDays One Year GM-B 2023"]
[Site "Budapest"]
[Date "2023.09.22"]
[Round "8.3"]
[White "Lee, Jun Hyeok"]
[Black "Baum, Jonasz"]
[Result "1/2-1/2"]
[ECO "C55"]
[WhiteElo "2378"]
[BlackElo "2429"]
[Annotator "ChessBase"]
[PlyCount "32"]
[EventDate "2023.09.18"]
[EventType "tourn"]
[EventCountry "HUN"]
[SourceTitle "playchess.com"]
[Source "ChessBase"]
[SourceQuality "1"]
[TimeControl "5400+30"]

1. e4 {[%emt 0:00:59]} e5 {[%emt 0:00:03]} 2. Nf3 {[%emt 0:01:15]} Nc6 {[%emt 0:00:04]} 3. Bc4 {[%emt 0:02:15]} Nf6 {[%emt 0:00:23]} 4. d3 {[%emt 0:00:02]} h6 {[%emt 0:00:04]} 5. a4 {[%emt 0:00:24]} d6 {[%emt 0:00:08]} 6. a5 {[%emt 0:00:44]} a6 {[%emt 0:00:51]} 7. c3 {[%emt 0:00:45]} g6 {[%emt 0:00:58]} 8. Qb3 {[%emt 0:00:50]} Qe7 {[%emt 0:00:37]} 9. Nbd2 {[%emt 0:00:13]} Bg7 {[%emt 0:00:05]} 10. Nf1 {[%emt 0:00:38]} O-O {[%emt 0:02:20]} 11. Ng3 {[%emt 0:00:29]} Nd8 {[%emt 0:24:08]} 12. O-O {[%emt 0:05:09]} Bg4 {[%emt 0:07:10]} 13. Qd1 {[%emt 0:01:39]} Kh7 {[%emt 0:04:59]} 14. h3 {[%emt 0:01:04]} Be6 {[%emt 0:01:07]} 15. Bxe6 {[%emt 0:01:27]} Nxe6 {[%emt 0:01:33]} 16. Re1 {[%emt 0:01:21]} c5 {[%emt 0:06:41]} 1/2-1/2

[Event "SixDays One Year GM-B 2023"]
[Site "Budapest"]
[Date "2023.09.22"]
[Round "8.4"]
[White "Velikanov, Alexander"]
[Black "Fodor, Tamas Jr."]
[Result "1/2-1/2"]
[ECO "C01"]
[WhiteElo "2327"]
[BlackElo "2486"]
[Annotator "ChessBase"]
[PlyCount "21"]
[EventDate "2023.09.18"]
[EventType "tourn"]
[EventCountry "HUN"]
[SourceTitle "playchess.com"]
[Source "ChessBase"]
[SourceQuality "1"]
[TimeControl "5400+30"]

1. e4 {[%emt 0:00:02]} e6 {[%emt 0:00:32]} 2. d4 {[%emt 0:00:06]} d5 {[%emt 0:00:06]} 3. exd5 {[%emt 0:00:04]} exd5 {[%emt 0:00:07]} 4. Nf3 {[%emt 0:00:05]} Nf6 {[%emt 0:00:24]} 5. Bd3 {[%emt 0:00:06]} c5 {[%emt 0:00:10]} 6. O-O {[%emt 0:00:07]} c4 {[%emt 0:00:07]} 7. Re1+ {[%emt 0:00:05]} Be7 {[%emt 0:00:05]} 8. Bf1 {[%emt 0:00:04]} O-O {[%emt 0:00:10]} 9. b3 {[%emt 0:00:07]} cxb3 {[%emt 0:00:12]} 10. axb3 {[%emt 0:00:06]} Nc6 {[%emt 0:00:05]} 11. Ne5 {[%emt 0:00:15]} 1/2-1/2

[Event "SixDays One Year GM-B 2023"]
[Site "Budapest"]
[Date "2023.09.22"]
[Round "8.5"]
[White "Palczert, Matyas"]
[Black "Siddharth, Jagadeesh"]
[Result "0-1"]
[ECO "B52"]
[WhiteElo "2340"]
[BlackElo "2391"]
[Annotator "ChessBase"]
[PlyCount "108"]
[EventDate "2023.09.18"]
[EventType "tourn"]
[EventCountry "HUN"]
[SourceTitle "playchess.com"]
[Source "ChessBase"]
[SourceQuality "1"]
[TimeControl "5400+30"]

1. e4 {[%emt 0:00:40]} c5 {[%emt 0:00:09]} 2. Nf3 {[%emt 0:00:54]} d6 {[%emt 0:00:10]} 3. Bb5+ {[%emt 0:00:20]} Bd7 {[%emt 0:00:27]} 4. Bxd7+ {[%emt 0:00:09]} Nxd7 {[%emt 0:00:07]} 5. O-O {[%emt 0:00:10]} Ngf6 {[%emt 0:00:18]} 6. Qe2 {[%emt 0:00:26]} e6 {[%emt 0:00:22]} 7. d4 {[%emt 0:00:39]} cxd4 {[%emt 0:00:40]} 8. Nxd4 {[%emt 0:00:09]} Be7 {[%emt 0:00:35]} 9. c4 {[%emt 0:00:53]} Qa5 {[%emt 0:00:19]} 10. Rd1 {[%emt 0:04:51]} a6 {[%emt 0:01:06]} 11. b3 {[%emt 0:01:34]} Rc8 {[%emt 0:00:19]} 12. Bb2 {[%emt 0:00:37]} Qh5 {[%emt 0:00:11]} 13. Qxh5 {[%emt 0:03:22]} Nxh5 {[%emt 0:00:07]} 14. Nc3 {[%emt 0:01:42]} Rg8 {[%emt 0:00:16]} 15. Rac1 {[%emt 0:08:37]} g5 {[%emt 0:01:48]} 16. Nde2 {[%emt 0:03:25]} g4 {[%emt 0:05:38]} 17. Rc2 {[%emt 0:03:47]} Nc5 {[%emt 0:06:44]} 18. Ba3 {[%emt 0:07:21]} Nf6 {[%emt 0:01:23]} 19. Bxc5 {[%emt 0:02:20]} Rxc5 {[%emt 0:00:08]} 20. Nc1 {[%emt 0:01:01]} b5 {[%emt 0:12:31]} 21. Nd3 {[%emt 0:01:21]} Rc8 {[%emt 0:01:22]} 22. e5 {[%emt 0:13:27]} dxe5 {[%emt 0:03:04]} 23. Nxe5 {[%emt 0:00:34]} Rg5 {[%emt 0:05:17]} 24. Re2 {[%emt 0:02:57]} Rc5 {[%emt 0:02:15]} 25. f4 {[%emt 0:02:24]} gxf3 {[%emt 0:03:53]} 26. Nxf3 {[%emt 0:00:09]} Rh5 {[%emt 0:01:33]} 27. Ne4 {[%emt 0:02:06]} Rc6 {[%emt 0:06:08]} 28. Ng3 {[%emt 0:08:58]} Rhc5 {[%emt 0:01:41]} 29. Ne5 {[%emt 0:00:31]} Rd6 {[%emt 0:01:04]} 30. Rf1 {[%emt 0:01:05]} bxc4 {[%emt 0:02:46]} 31. Nxc4 {[%emt 0:00:37]} Rd3 {[%emt 0:00:25]} 32. Ne4 {[%emt 0:03:54]} Nxe4 {[%emt 0:01:23]} 33. Rxe4 {[%emt 0:00:08]} Rcd5 {[%emt 0:02:07]} 34. Kf2 {[%emt 0:09:37]} Rc3 {[%emt 0:01:09]} 35. Kg1 {[%emt 0:07:41]} Rc2 {[%emt 0:01:47]} 36. Rg4 {[%emt 0:01:41]} Bc5+ {[%emt 0:00:45]} 37. Kh1 {[%emt 0:00:04]} Rxa2 {[%emt 0:01:04]} 38. h4 {[%emt 0:00:35]} Rf2 {[%emt 0:01:00]} 39. Ra1 {[%emt 0:00:20]} h5 {[%emt 0:05:15]} 40. Rg5 {[%emt 0:01:12]} Rf4 {[%emt 0:02:25]} 41. g3 {[%emt 0:00:10]} Rxg5 {[%emt 0:00:24]} 42. hxg5 {[%emt 0:00:06]} Rf3 {[%emt 0:00:43]} 43. Ra5 {[%emt 0:00:47]} Bd4 {[%emt 0:01:28]} 44. Rxa6 {[%emt 0:00:20]} Rxg3 {[%emt 0:00:39]} 45. b4 {[%emt 0:01:25]} Rxg5 {[%emt 0:01:58]} 46. b5 {[%emt 0:01:31]} Kf8 {[%emt 0:02:26]} 47. b6 {[%emt 0:01:48]} Rg1+ {[%emt 0:01:41]} 48. Kh2 {[%emt 0:00:01]} Rb1 {[%emt 0:00:55]} 49. Kg2 {[%emt 0:00:52]} Rb4 {[%emt 0:00:43]} 50. Ra8+ {[%emt 0:03:47]} Kg7 {[%emt 0:00:18]} 51. Rc8 {[%emt 0:00:21]} Bxb6 {[%emt 0:00:10]} 52. Nd6 {[%emt 0:00:17]} Rd4 {[%emt 0:00:39]} 53. Nc4 {[%emt 0:00:20]} Bd8 {[%emt 0:00:19]} 54. Ne5 {[%emt 0:00:06]} Bf6 {[%emt 0:00:17]} 0-1

[Event "SixDays One Year GM-B 2023"]
[Site "Budapest"]
[Date "2023.09.23"]
[Round "9.1"]
[White "Siddharth, Jagadeesh"]
[Black "Grover, Sahaj"]
[Result "1/2-1/2"]
[ECO "B12"]
[WhiteElo "2391"]
[BlackElo "2488"]
[Annotator "RC"]
[PlyCount "56"]
[EventDate "2023.09.18"]
[EventType "tourn"]
[EventCountry "HUN"]
[SourceTitle "playchess.com"]
[Source "ChessBase"]
[SourceQuality "1"]
[TimeControl "5400+30"]

1. e4 c6 {[%emt 0:14:29]} 2. d4 {[%emt 0:07:08]} d5 {[%emt 0:00:06]} 3. e5 {[%emt 0:00:06]} c5 {[%emt 0:00:04]} 4. Nf3 {[%emt 0:00:17]} cxd4 {[%emt 0:00:16]} 5. Qxd4 {[%emt 0:00:15]} Nc6 {[%emt 0:02:27]} 6. Qf4 {[%emt 0:00:08]} e6 {[%emt 0:03:07]} 7. Bd3 {[%emt 0:00:14]} f6 {[%emt 0:03:28]} 8. Nc3 {[%emt 0:11:03]} fxe5 {[%emt 0:08:28]} 9. Nxe5 {[%emt 0:00:16]} Nf6 {[%emt 0:07:33]} 10. Nb5 {[%emt 0:08:41]} Bb4+ {[%emt 0:00:33]} 11. c3 {[%emt 0:01:01]} Ba5 {[%emt 0:00:07]} 12. Nxc6 {[%emt 0:02:37]} bxc6 {[%emt 0:00:21]} 13. Nd6+ {[%emt 0:00:07]} Ke7 {[%emt 0:02:08]} 14. Qg3 {[%emt 0:01:31]} Kf8 {[%emt 0:05:03]} 15. Nxc8 {[%emt 0:07:41]} Rxc8 {[%emt 0:00:16]} 16. O-O {[%emt 0:00:31]} Bc7 {[%emt 0:00:15]} 17. Qh3 {[%emt 0:02:28]} Kf7 {[%emt 0:00:44]} 18. Re1 {[%emt 0:14:02]} Re8 {[%emt 0:05:25]} 19. Bg5 {[%emt 0:00:26]} h6 {[%emt 0:00:10]} 20. Bh4 {[%emt 0:00:09]} Bf4 {[%emt 0:02:41]} 21. Bxf6 {[%emt 0:08:59]} Qxf6 {[%emt 0:00:39]} 22. Re2 {[%emt 0:00:07]} Re7 {[%emt 0:02:05]} 23. Rae1 {[%emt 0:00:31]} Rce8 {[%emt 0:04:48]} 24. g3 {[%emt 0:04:30]} Bd6 {[%emt 0:01:46]} 25. Qh5+ {[%emt 0:00:36]} Kg8 {[%emt 0:00:06]} 26. Qg6 {[%emt 0:00:43]} e5 {[%emt 0:00:59]} 27. Qxf6 {[%emt 0:02:58]} gxf6 {[%emt 0:00:07]} 28. f3 {[%emt 0:00:13]} a5 {[%emt 0:01:43]} 1/2-1/2

[Event "SixDays One Year GM-B 2023"]
[Site "Budapest"]
[Date "2023.09.23"]
[Round "9.2"]
[White "Fodor, Tamas Jr."]
[Black "Palczert, Matyas"]
[Result "0-1"]
[ECO "E24"]
[WhiteElo "2486"]
[BlackElo "2340"]
[Annotator "RC"]
[PlyCount "136"]
[EventDate "2023.09.18"]
[EventType "tourn"]
[EventCountry "HUN"]
[SourceTitle "playchess.com"]
[Source "ChessBase"]
[SourceQuality "1"]
[TimeControl "5400+30"]

1. d4 {[%emt 0:00:07]} Nf6 {[%emt 0:05:04]} 2. c4 {[%emt 0:00:07]} e6 {[%emt 0:00:09]} 3. Nc3 {[%emt 0:00:05]} Bb4 {[%emt 0:00:16]} 4. a3 {[%emt 0:00:06]} Bxc3+ {[%emt 0:00:13]} 5. bxc3 {[%emt 0:00:05]} c5 {[%emt 0:00:45]} 6. f3 {[%emt 0:00:17]} Nc6 {[%emt 0:03:01]} 7. e4 {[%emt 0:01:22]} d6 {[%emt 0:01:09]} 8. Be3 {[%emt 0:07:29]} Qa5 {[%emt 0:08:34]} 9. d5 {[%emt 0:01:51]} Ne5 {[%emt 0:03:40]} 10. Qc2 {[%emt 0:07:18]} O-O {[%emt 0:03:35]} 11. Be2 {[%emt 0:02:03]} b5 {[%emt 0:09:24]} 12. dxe6 {[%emt 0:01:37]} bxc4 {[%emt 0:02:36]} 13. exf7+ {[%emt 0:03:02]} Rxf7 {[%emt 0:01:31]} 14. Rd1 {[%emt 0:00:49]} d5 {[%emt 0:05:46]} 15. exd5 {[%emt 0:03:28]} Nd3+ {[%emt 0:09:20]} 16. Bxd3 {[%emt 0:18:28]} cxd3 {[%emt 0:00:08]} 17. Qxd3 {[%emt 0:00:03]} Ba6 {[%emt 0:00:50]} 18. Qd2 {[%emt 0:00:13]} Ne4 {[%emt 0:02:35]} 19. Qc2 {[%emt 0:06:03]} Nxc3 {[%emt 0:01:03]} 20. Kf2 {[%emt 0:00:35]} Nxd1+ {[%emt 0:03:22]} 21. Qxd1 {[%emt 0:00:10]} Qxa3 {[%emt 0:01:12]} 22. Nh3 {[%emt 0:00:08]} Re8 {[%emt 0:06:12]} 23. Qc1 {[%emt 0:05:54]} Qxc1 {[%emt 0:05:26]} 24. Rxc1 {[%emt 0:00:12]} c4 {[%emt 0:00:28]} 25. Ng5 {[%emt 0:00:58]} Rd7 {[%emt 0:05:14]} 26. Ne4 {[%emt 0:05:58]} Rxd5 {[%emt 0:00:36]} 27. Bxa7 {[%emt 0:01:01]} Ra5 {[%emt 0:02:11]} 28. Nc3 {[%emt 0:02:16]} Bc8 {[%emt 0:02:18]} 29. Bd4 {[%emt 0:00:16]} Bf5 {[%emt 0:00:28]} 30. h4 {[%emt 0:02:28]} Bd3 {[%emt 0:01:58]} 31. Rd1 {[%emt 0:03:15]} Kf7 {[%emt 0:01:00]} 32. Rd2 {[%emt 0:00:06]} Rb8 {[%emt 0:00:50]} 33. g4 {[%emt 0:00:05]} Rb3 {[%emt 0:00:25]} 34. Rd1 {[%emt 0:01:02]} Raa3 {[%emt 0:02:05]} 35. Rc1 {[%emt 0:00:04]} Ra8 {[%emt 0:01:40]} 36. h5 {[%emt 0:01:08]} Rb2+ {[%emt 0:00:24]} 37. Kg3 {[%emt 0:00:51]} Rd8 {[%emt 0:01:13]} 38. Be5 {[%emt 0:00:15]} Re8 {[%emt 0:00:24]} 39. Bd4 {[%emt 0:00:05]} Rb7 {[%emt 0:00:20]} 40. f4 {[%emt 0:01:55]} Rd7 {[%emt 0:02:50]} 41. Be5 {[%emt 0:00:17]} Rxe5 {[%emt 0:00:48]} 42. fxe5 {[%emt 0:00:08]} Ke6 {[%emt 0:00:12]} 43. Re1 {[%emt 0:02:09]} Bc2 {[%emt 0:02:32]} 44. Kh4 {[%emt 0:00:03]} Rd4 {[%emt 0:02:37]} 45. Nb5 {[%emt 0:04:09]} Re4 {[%emt 0:00:27]} 46. Rc1 {[%emt 0:00:05]} Bb3 {[%emt 0:00:29]} 47. Nd6 {[%emt 0:01:03]} Rd4 {[%emt 0:00:13]} 48. Nb5 {[%emt 0:01:01]} Rd1 {[%emt 0:00:55]} 49. Rc3 {[%emt 0:00:53]} Kxe5 {[%emt 0:00:15]} 50. Rf3 {[%emt 0:00:35]} Rd7 {[%emt 0:01:12]} 51. h6 {[%emt 0:01:34]} gxh6 {[%emt 0:00:36]} 52. Kh5 {[%emt 0:00:26]} Bc2 {[%emt 0:01:11]} 53. Na3 {[%emt 0:01:42]} Bd3 {[%emt 0:00:25]} 54. Nxc4+ {[%emt 0:00:13]} Bxc4 {[%emt 0:00:11]} 55. Kxh6 {[%emt 0:00:09]} Bd3 {[%emt 0:00:15]} 56. g5 {[%emt 0:01:59]} Rd6+ {[%emt 0:00:36]} 57. Kg7 {[%emt 0:00:08]} Bf5 {[%emt 0:01:10]} 58. Rf1 {[%emt 0:01:32]} Rd7+ {[%emt 0:00:17]} 59. Kh6 {[%emt 0:00:51]} Rd3 {[%emt 0:00:50]} 60. Rh1 {[%emt 0:01:27]} Bg6 {[%emt 0:00:59]} 61. Ra1 {[%emt 0:01:18]} Be4 {[%emt 0:01:11]} 62. Ra4 {[%emt 0:04:16]} Rh3+ {[%emt 0:01:12]} 63. Kg7 {[%emt 0:00:03]} Bg6 {[%emt 0:00:09]} 64. Ra5+ {[%emt 0:00:11]} Ke6 {[%emt 0:00:13]} 65. Ra6+ {[%emt 0:00:05]} Kf5 {[%emt 0:00:11]} 66. Ra5+ {[%emt 0:00:05]} Kg4 {[%emt 0:00:19]} 67. Rb5 {[%emt 0:00:07]} Kh5 {[%emt 0:00:36]} 68. Ra5 {[%emt 0:00:43]} Rf3 {[%emt 0:00:17]} 0-1

[Event "SixDays One Year GM-B 2023"]
[Site "Budapest"]
[Date "2023.09.23"]
[Round "9.3"]
[White "Baum, Jonasz"]
[Black "Velikanov, Alexander"]
[Result "0-1"]
[ECO "A57"]
[WhiteElo "2429"]
[BlackElo "2327"]
[Annotator "RC"]
[PlyCount "62"]
[EventDate "2023.09.18"]
[EventType "tourn"]
[EventCountry "HUN"]
[SourceTitle "playchess.com"]
[Source "ChessBase"]
[SourceQuality "1"]
[TimeControl "5400+30"]

1. d4 {[%emt 0:00:02]} Nf6 {[%emt 0:01:13]} 2. c4 {[%emt 0:00:02]} c5 {[%emt 0:00:05]} 3. d5 {[%emt 0:00:04]} b5 {[%emt 0:00:04]} 4. cxb5 {[%emt 0:00:03]} a6 {[%emt 0:00:03]} 5. e3 {[%emt 0:00:03]} e6 {[%emt 0:01:20]} 6. dxe6 {[%emt 0:00:19]} fxe6 {[%emt 0:00:23]} 7. Nc3 {[%emt 0:00:38]} d5 {[%emt 0:02:22]} 8. Nf3 {[%emt 0:00:11]} Be7 {[%emt 0:07:57]} 9. Be2 {[%emt 0:01:46]} O-O {[%emt 0:00:27]} 10. O-O {[%emt 0:00:03]} axb5 {[%emt 0:00:08]} 11. Bxb5 {[%emt 0:01:44]} Bb7 {[%emt 0:02:58]} 12. Qe2 {[%emt 0:15:37]} Nbd7 {[%emt 0:05:51]} 13. Rd1 {[%emt 0:04:19]} Bd6 {[%emt 0:03:37]} 14. e4 {[%emt 0:09:44]} d4 {[%emt 0:02:35]} 15. Bc4 {[%emt 0:01:09]} Kh8 {[%emt 0:04:29]} 16. Ng5 {[%emt 0:15:42]} Qb8 {[%emt 0:03:05]} 17. Nb1 {[%emt 0:08:06]} Bxh2+ {[%emt 0:06:03]} 18. Kh1 {[%emt 0:00:34]} Ne5 {[%emt 0:00:08]} 19. Bxe6 {[%emt 0:06:41]} Ba6 {[%emt 0:06:49]} 20. Qc2 {[%emt 0:01:21]} h6 {[%emt 0:08:43]} 21. Nh3 {[%emt 0:00:15]} Neg4 {[%emt 0:04:20]} 22. f3 {[%emt 0:17:46]} Ne3 {[%emt 0:03:24]} 23. Bxe3 {[%emt 0:00:02]} dxe3 {[%emt 0:00:08]} 24. Nc3 {[%emt 0:00:17]} Nh5 {[%emt 0:05:19]} 25. g4 {[%emt 0:00:50]} Ng3+ {[%emt 0:01:57]} 26. Kg2 {[%emt 0:06:46]} e2 {[%emt 0:00:18]} 27. Re1 {[%emt 0:05:43]} Nf1 {[%emt 0:02:26]} 28. Rxe2 {[%emt 0:00:49]} Qg3+ {[%emt 0:00:13]} 29. Kh1 {[%emt 0:00:04]} Qxf3+ {[%emt 0:00:12]} 30. Rg2 {[%emt 0:00:05]} Qxh3 {[%emt 0:00:27]} 31. Rxh2 {[%emt 0:00:20]} Ng3+ {[%emt 0:00:08]} 0-1

[Event "SixDays One Year GM-B 2023"]
[Site "Budapest"]
[Date "2023.09.23"]
[Round "9.4"]
[White "Varga, Zoltan"]
[Black "Lee, Jun Hyeok"]
[Result "1/2-1/2"]
[ECO "E85"]
[WhiteElo "2363"]
[BlackElo "2378"]
[Annotator "RC"]
[PlyCount "48"]
[EventDate "2023.09.18"]
[EventType "tourn"]
[EventCountry "HUN"]
[SourceTitle "playchess.com"]
[Source "ChessBase"]
[SourceQuality "1"]
[TimeControl "5400+30"]

1. d4 {[%emt 0:26:36]} g6 {[%emt 0:01:14]} 2. e4 {[%emt 0:00:05]} Bg7 {[%emt 0:00:03]} 3. c4 {[%emt 0:00:05]} d6 {[%emt 0:01:00]} 4. Nc3 {[%emt 0:00:07]} Nf6 {[%emt 0:00:08]} 5. f3 {[%emt 0:00:15]} O-O {[%emt 0:00:15]} 6. Be3 {[%emt 0:00:02]} e5 {[%emt 0:00:48]} 7. Nge2 {[%emt 0:00:15]} Nbd7 {[%emt 0:01:07]} 8. Qd2 {[%emt 0:00:06]} a6 {[%emt 0:00:23]} 9. O-O-O {[%emt 0:01:20]} b5 {[%emt 0:01:53]} 10. Kb1 {[%emt 0:01:47]} c6 {[%emt 0:05:30]} 11. c5 {[%emt 0:16:13]} b4 {[%emt 0:10:39]} 12. Na4 {[%emt 0:01:20]} Qa5 {[%emt 0:02:43]} 13. b3 {[%emt 0:00:48]} exd4 {[%emt 0:12:04]} 14. Nxd4 {[%emt 0:05:33]} Bb7 {[%emt 0:01:01]} 15. cxd6 {[%emt 0:02:10]} c5 {[%emt 0:00:08]} 16. Nc2 {[%emt 0:00:36]} Bc6 {[%emt 0:00:43]} 17. Nxc5 {[%emt 0:01:45]} Nxc5 {[%emt 0:02:26]} 18. Qxb4 {[%emt 0:03:07]} Nb7 {[%emt 0:03:57]} 19. Qxa5 {[%emt 0:00:59]} Nxa5 {[%emt 0:00:02]} 20. Bb6 {[%emt 0:01:24]} Nb7 {[%emt 0:05:31]} 21. Nb4 {[%emt 0:00:56]} Bxe4+ {[%emt 0:05:44]} 22. fxe4 {[%emt 0:00:37]} Nxe4 {[%emt 0:00:04]} 23. Nd5 {[%emt 0:04:22]} Nbxd6 {[%emt 0:05:13]} 24. Bd3 {[%emt 0:00:02]} f5 {[%emt 0:02:47]} 1/2-1/2